fUSD/lending_fUSD_20260130
["ID","MTS","AMOUNT","RATE_DAILY","PERIOD"]
[404089280,1769808638566,-150.0,0.00017723,2]
[404089281,1769808638575,-150.0,0.00017723,2]
[404089282,1769808638585,-500.0,0.00017723,2]
[404089283,1769808638594,-150.0,0.00017723,2]
[404089284,1769808638604,-203.89317446,0.00017742,7]
[404089285,1769808638613,-200.0,0.00017768,2]
[404089286,1769808638624,-168.0,0.00017775,2]
[404089287,1769808638633,-150.0,0.00017778,2]
[404089288,1769808638643,-500.0,0.00017778,2]
[404089289,1769808638653,-150.0,0.00017778,2]
[404089290,1769808638925,-180.8671,0.00017778,2]
[404089291,1769808638936,-1310.065,0.00017778,2]
[404089292,1769808638948,-168.0,0.00017789,2]
[404089293,1769808638959,-200.0,0.00017811,2]
[404089294,1769808638970,-1502.0,0.00017811,2]
[404089295,1769808638980,-1502.0,0.00017811,2]
[404089296,1769808638991,-1502.0,0.00017811,2]
[404089297,1769808639001,-1502.0,0.00017811,2]
[404089299,1769808639011,-1502.0,0.00017811,2]
[404089301,1769808639022,-1502.0,0.00017811,2]
[404089303,1769808639033,-1502.0,0.00017811,2]
[404089305,1769808639044,-1502.0,0.00017811,2]
[404089307,1769808639058,-1502.0,0.00017811,2]
[404089309,1769808639069,-1502.0,0.00017811,2]
[404089311,1769808639080,-1502.0,0.00017811,2]
[404089313,1769808639091,-1502.0,0.00017811,2]
[404089315,1769808639103,-1502.0,0.00017811,2]
[404089317,1769808639114,-1502.0,0.00017811,2]
[404089319,1769808639126,-1502.0,0.00017811,2]
[404089321,1769808639136,-1502.0,0.00017811,2]
[404089323,1769808639147,-664.40624021,0.00017811,2]
[404089326,1769808639160,-837.59375979,0.00017811,2]
[404089328,1769808639171,-326.60985175,0.00017811,2]
[404089331,1769808639202,-1175.39014825,0.00017811,2]
[404089333,1769808639213,-148.06906947,0.00017811,2]
[404089335,1769808639243,-1157.83394336,0.00017811,2]
[404089336,1769808639280,-196.09698717,0.00017811,2]
[404089337,1769808639290,-1502.0,0.00017811,2]
[404089338,1769808639301,-1502.0,0.00017811,2]
[404089339,1769808639311,-1502.0,0.00017811,2]
[404089340,1769808639321,-1502.0,0.00017811,2]
[404089341,1769808639332,-1502.0,0.00017811,2]
[404089342,1769808639347,-1502.0,0.00017811,2]
[404089343,1769808639356,-1502.0,0.00017811,2]
[404089344,1769808639367,-1502.0,0.00017811,2]
[404089345,1769808639377,-1502.0,0.00017811,2]
[404089346,1769808639387,-1502.0,0.00017811,2]
[404089347,1769808639398,-1502.0,0.00017811,2]
[404089348,1769808639408,-1502.0,0.00017811,2]
[404089349,1769808639418,-1502.0,0.00017811,2]
[404089350,1769808639429,-1502.0,0.00017811,2]
[404089351,1769808639440,-1502.0,0.00017811,2]
[404089352,1769808639450,-1502.0,0.00017811,2]
[404089353,1769808639461,-1502.0,0.00017811,2]
[404089354,1769808639471,-1502.0,0.00017811,2]
[404089355,1769808639482,-1502.0,0.00017811,2]
[404089356,1769808639491,-1502.0,0.00017811,2]
[404089357,1769808639500,-1502.0,0.00017811,2]
[404089358,1769808639511,-1502.0,0.00017811,2]
[404089359,1769808639521,-1502.0,0.00017811,2]
[404089360,1769808639531,-1502.0,0.00017811,2]
[404089361,1769808639542,-1502.0,0.00017811,2]
[404089362,1769808639552,-1502.0,0.00017811,2]
[404089363,1769808639563,-500.0,0.00017817,2]
[404089364,1769808639574,-377.0,0.00017818,2]
[404089365,1769808639584,-200.0,0.00017833,2]
[404089366,1769808639595,-500.0,0.00017833,2]
[404089367,1769808639606,-150.0,0.00017833,2]
[404089368,1769808639617,-200.0,0.00017856,2]
[404089369,1769808639628,-377.0,0.00017862,2]
[404089370,1769808639638,-168.0,0.00017871,2]
[404089371,1769808639649,-377.0,0.00017871,2]
[404089372,1769808639661,-377.0,0.00017875,2]
[404089373,1769808639671,-377.0,0.0001788,2]
[404089374,1769808639682,-377.0,0.00017883,2]
[404089375,1769808639692,-200.0,0.00017887,2]
[404089376,1769808639702,-150.0,0.00017887,2]
[404089377,1769808639712,-158.430709,0.00017888,2]
[404089378,1769808639722,-151.0,0.00017897,2]
[404089379,1769808639732,-165.35600481,0.000179,2]
[404089380,1769808639743,-297.28301485,0.000179,2]
[404089381,1769808639753,-402.2271,0.000179,2]
[404089382,1769808639764,-377.0,0.00017904,2]
[404089383,1769808639776,-377.0,0.00017905,2]
[404089384,1769808639786,-1482.0,0.00017906,2]
[404089385,1769808639797,-377.0,0.0001791,2]
[404089386,1769808639807,-377.0,0.00017912,2]
[404089387,1769808639818,-377.0,0.00017925,2]
[404089388,1769808639829,-168.0,0.00017926,2]
[404089389,1769808639840,-150.0,0.00017942,2]
[404089390,1769808639850,-377.0,0.00017963,2]
[404089391,1769808639861,-500.0,0.00017973,2]
[404089392,1769808639872,-500.0,0.00017973,2]
[404089393,1769808639883,-500.0,0.00017973,2]
[404089394,1769808639894,-150.2937682,0.00017973,2]
[404089395,1769808639906,-425.9643075,0.00017973,2]
[404089396,1769808639916,-500.0,0.00017973,2]
[404089397,1769808639927,-302.6302377,0.00017973,2]
[404089398,1769808639939,-500.0,0.00017973,2]
[404089399,1769808639950,-500.0,0.00017973,2]
[404089400,1769808639961,-500.0,0.00017973,2]
[404089401,1769808639972,-500.0,0.00017973,2]
[404089402,1769808639983,-500.0,0.00017973,2]
[404089403,1769808639994,-500.0,0.00017973,2]
[404089404,1769808640005,-500.0,0.00017973,2]
[404089405,1769808640016,-500.0,0.00017973,2]
[404089406,1769808640027,-504.44245544,0.00017973,2]
[404089407,1769808640037,-500.0,0.00017973,2]
[404089408,1769808640048,-500.0,0.00017973,2]
[404089409,1769808640061,-500.0,0.00017973,2]
[404089410,1769808640071,-151.27,0.00017973,2]
[404089411,1769808640082,-154.89525087,0.00017973,2]
[404089412,1769808640092,-378.1416374,0.00017973,2]
[404089413,1769808640101,-278.81145156,0.00017973,2]
[404089414,1769808640111,-150.0,0.00017973,2]
[404089415,1769808640121,-377.0,0.00017976,2]
[404089416,1769808640131,-1270.0,0.00017978,2]
[404089417,1769808640140,-916.0,0.00017978,2]
[404089418,1769808640150,-1204.0,0.00017978,2]
[404089419,1769808640160,-491.094,0.00017978,2]
[404089420,1769808640169,-616.0,0.00017978,2]
[404089421,1769808640179,-3479.0,0.00017978,2]
[404089422,1769808640188,-377.0,0.00017987,2]
[404089423,1769808640199,-377.0,0.00017989,2]
[404089424,1769808640209,-200.0,0.00017989,2]
[404089425,1769808640218,-167.90551449,0.0001799,2]
[404089426,1769808640230,-167.90551449,0.0001799,2]
[404089427,1769808640240,-377.0,0.00017994,2]
[404089428,1769808640250,-377.0,0.00017994,2]
[404089429,1769808640260,-250.0,0.00017997,2]
[404089430,1769808640270,-267.0,0.00017997,2]
[404089431,1769808640280,-151.0,0.00017997,2]
[404089432,1769808640290,-200.0,0.00017997,2]
[404089433,1769808640300,-150.0,0.00017997,2]
[404089434,1769808640311,-150.0,0.00017997,2]
[404089435,1769808640320,-150.0,0.00017997,2]
[404089436,1769808640331,-150.101,0.00017997,2]
[404089437,1769808640342,-150.0,0.00017997,2]
[404089438,1769808640352,-150.0,0.00017997,2]
[404089439,1769808640363,-150.184,0.00017997,2]
[404089440,1769808640373,-155.0,0.00017999,2]
[404089441,1769808640384,-150.64474918,0.00017999,2]
[404089442,1769808640395,-196.67535604,0.00017999,2]
[404089443,1769808640405,-500.0,0.00017999,2]
[404089444,1769808640416,-230.78849537,0.00017999,2]
[404089445,1769808640426,-204.15195329,0.00017999,2]
[404089446,1769808640436,-500.0,0.00017999,2]
[404089447,1769808640448,-371.03843354,0.00017999,2]
[404089448,1769808640459,-864.0,0.00018,2]
[404089449,1769808640469,-40230.88078648,0.00018,2]
[404089450,1769808640514,-431.69598331,0.00018,2]
[404089456,1769808641187,-1221.1636,0.00018,2]
[404089457,1769808641411,-266.802,0.00018,2]
[404089470,1769808644531,-58294.41961321,0.00018,2]
[404089471,1769808644699,-2160.27558022,0.00018,2]
[404089472,1769808644710,-6822.16370889,0.00018,2]
[404089502,1769809652139,-6060.47,0.00014191,2]
[404089503,1769809652161,-792.6,0.00016536,2]
[404089504,1769809652183,-759.61327145,0.00016701,2]
[404089510,1769809754088,-166.66,0.00015833,2]
[404089511,1769809754110,-166.66,0.00016166,2]
[404089521,1769809832214,-166.66,0.000165,2]
[404089523,1769809832224,-151.0,0.00016611,2]
[404089525,1769809832234,-1120.83,0.00016617,2]
[404089527,1769809832243,-151.0,0.00016617,2]
[404089529,1769809832252,-416.28,0.00016646,2]
[404089531,1769809832262,-1908.96,0.00016702,2]
[404089533,1769809832271,-170.78,0.00016747,2]
[404089535,1769809832281,-166.66,0.00016833,2]
[404089536,1769809832290,-500.0,0.00016919,2]
[404089537,1769809832299,-250.0,0.00017,2]
[404089538,1769809832308,-209.40437684,0.0001704,2]
[404089539,1769809832318,-310.76989175,0.00017078,2]
[404089540,1769809832327,-217.15233878,0.00017095,2]
[404089541,1769809832336,-225.18697532,0.0001715,2]
[404089542,1769809832347,-166.66,0.00017166,2]
[404089543,1769809832357,-233.51889341,0.00017205,2]
[404089544,1769809832366,-242.15909246,0.0001726,2]
[404089545,1769809832375,-251.11897888,0.00017315,2]
[404089546,1769809832384,-773.55926256,0.00017343,2]
[404089547,1769809832426,-87.44073744,0.00017343,2]
[404089548,1769809832435,-260.4103811,0.0001737,2]
[404089549,1769809832448,-166.67,0.00017415,2]
[404089550,1769809832457,-498.56570838,0.00017424,2]
[404089551,1769809832475,-701.43429162,0.00017424,2]
[404089553,1769809832488,-270.0455652,0.00017425,2]
[404089555,1769809832498,-416.28,0.00017479,2]
[404089557,1769809832507,-280.03725112,0.0001748,2]
[404089558,1769809832516,-166.66,0.000175,2]
[404089559,1769809832525,-732.5279,0.00017532,2]
[404089560,1769809832535,-861.0,0.00017535,2]
[404089561,1769809832546,-290.39862941,0.00017535,2]
[404089563,1769809832556,-301.1433787,0.0001759,2]
[404089566,1769809832565,-300.0,0.00017622,2]
[404089567,1769809832575,-38.01873743,0.00017623,2]
[404089568,1769809832586,-2424.42970357,0.00017623,2]
[404089569,1769809832597,-558.76267928,0.00017623,2]
[404089570,1769809832609,-947.96197807,0.00017623,2]
[404089571,1769809832631,-293.48857706,0.00017623,2]
[404089572,1769809832644,-1331.26324519,0.00017623,2]
[404089573,1769809832656,-607.56498033,0.00017623,2]
[404089574,1769809832667,-1691.67677193,0.00017623,2]
[404089575,1769809832678,-3444.2674592,0.00017623,2]
[404089576,1769809832692,-408.2574532,0.00017623,2]
[404089577,1769809832703,-323.3292545,0.00017623,2]
[404089578,1769809838460,-351.88118535,0.00017623,2]
[404089579,1769809838639,-845.85369592,0.00017623,2]
[404089580,1769809838650,-436.75223375,0.00017623,2]
[404089586,1769809838722,-251.80538329,0.00017623,2]
[404089588,1769809838732,-390.805764,0.00017623,2]
[404089593,1769809838770,-477.28532537,0.00017623,2]
[404089595,1769809838780,-276.90264659,0.00017623,2]
[404089598,1769809838791,-25863.91786554,0.00017623,2]
[404089667,1769809840334,-757.3835385,0.00017623,2]
[404089668,1769809840410,-5162.82916256,0.00017623,2]
[404089669,1769809840532,-16037.22575937,0.00017623,2]
[404089670,1769809840548,-150.0,0.00017723,2]
[404089671,1769809840564,-150.0,0.00017723,2]
[404089672,1769809840579,-500.0,0.00017723,2]
[404089673,1769809840596,-150.0,0.00017723,2]
[404089674,1769809840612,-291.0315761,0.00017723,2]
[404089675,1769809840628,-500.0,0.00017723,2]
[404089676,1769809840644,-235.9944481,0.00017723,2]
[404089677,1769809840658,-153.23607155,0.00017723,2]
[404089678,1769809840684,-153.98209537,0.00017723,2]
[404089679,1769809840703,-150.0,0.00017723,2]
[404089680,1769809840719,-204.59716346,0.00017723,2]
[404089681,1769809840735,-500.0,0.00017723,2]
[404089682,1769809840752,-500.0,0.00017723,2]
[404089683,1769809840767,-150.0,0.00017723,2]
[404089684,1769809840783,-500.0,0.00017723,2]
[404089685,1769809840799,-489.46,0.00017723,2]
[404089686,1769809840814,-500.0,0.00017723,2]
[404089687,1769809840830,-268.77195069,0.00017723,2]
[404089688,1769809840845,-500.0,0.00017723,2]
[404089689,1769809840860,-500.0,0.00017723,2]
[404089690,1769809840875,-500.0,0.00017723,2]
[404089691,1769809840890,-150.0,0.00017723,2]
[404089692,1769809840907,-861.0,0.00017746,2]
[404089694,1769809840922,-861.0,0.00017767,2]
[404089696,1769809840937,-151.0,0.00017775,2]
[404089698,1769809840953,-150.0,0.00017778,2]
[404089699,1769809840968,-500.0,0.00017778,2]
[404089700,1769809840984,-500.0,0.00017778,2]
[404089701,1769809840999,-150.0,0.00017778,2]
[404089702,1769809841014,-500.0,0.00017778,2]
[404089703,1769809841030,-500.0,0.00017778,2]
[404089704,1769809841044,-201.8353746,0.00017778,2]
[404089705,1769809841059,-98.96769822,0.00017778,2]
[404089706,1769809841076,-401.03230178,0.00017778,2]
[404089707,1769809841091,-500.0,0.00017778,2]
[404089708,1769809841105,-500.0,0.00017778,2]
[404089709,1769809841121,-500.0,0.00017778,2]
[404089711,1769809841136,-500.0,0.00017778,2]
[404089712,1769809841151,-151.0,0.00017789,2]
[404089713,1769809841166,-151.0,0.00017789,2]
[404089714,1769809841182,-151.0,0.00017789,2]
[404089715,1769809841196,-151.0,0.00017789,2]
[404089716,1769809841212,-151.0,0.00017789,2]
[404089717,1769809841227,-151.0,0.00017789,2]
[404089718,1769809841242,-151.0,0.00017789,2]
[404089719,1769809841256,-151.0,0.00017789,2]
[404089720,1769809841271,-151.0,0.00017789,2]
[404089721,1769809841287,-151.0,0.00017789,2]
[404089722,1769809841301,-151.0,0.00017789,2]
[404089723,1769809841316,-151.0,0.00017789,2]
[404089724,1769809841330,-151.0,0.00017789,2]
[404089725,1769809841345,-153.98079146,0.00017789,2]
[404089726,1769809841359,-101.83637276,0.00017789,2]
[404089727,1769809841377,-354.57139711,0.00017789,2]
[404089728,1769809841418,-43.59223013,0.00017789,2]
[404089729,1769809841432,-233.27976787,0.00017789,2]
[404089730,1769809841985,-266.72023213,0.00017789,2]
[404089731,1769809841995,-500.0,0.00017789,2]
[404089732,1769809842004,-500.0,0.00017789,2]
[404089733,1769809842014,-94.56976787,0.00017789,2]
[404089734,1769809842025,-759.68914693,0.00017789,2]
[404089735,1769809842034,-500.0,0.00017789,2]
[404089736,1769809842044,-3.58085307,0.00017789,2]
[404089737,1769809842055,-496.41914693,0.00017789,2]
[404089738,1769809842065,-9.95727669,0.00017789,2]
[404089739,1769809842335,-490.04272331,0.00017789,2]
[404089740,1769809842344,-500.0,0.00017789,2]
[404089741,1769809842353,-104.16519163,0.00017789,2]
[404089742,1769809842364,-395.83480837,0.00017789,2]
[404089743,1769809842373,-500.0,0.00017789,2]
[404089744,1769809842382,-500.0,0.00017789,2]
[404089745,1769809842391,-151.0,0.00017789,2]
[404089746,1769809842400,-151.0,0.00017789,2]
[404089747,1769809842413,-500.0,0.00017789,2]
[404089748,1769809842422,-200.0,0.00017789,2]
[404089749,1769809842431,-7876.38075642,0.000178,2]
[404089750,1769809842441,-786.55376204,0.000178,2]
[404089751,1769809842463,-1368.08453927,0.000178,2]
[404089752,1769809842487,-345.36169869,0.000178,2]
[404089753,1769809842496,-508.72190131,0.00017811,2]
[404089769,1769809843796,-410.39994,0.00017811,2]
[404089770,1769809843807,-345.0,0.00017811,2]
[404089771,1769809843819,-340.981756,0.00017811,2]
[404089772,1769809843829,-549.19859983,0.00017811,2]
[404089773,1769809843839,-4197.18904291,0.00017811,2]
[404089774,1769809843934,-1524.88951636,0.00017811,2]
[404089775,1769809843943,-682.38246962,0.0001782,2]
[404089776,1769809844114,-1122.68153038,0.0001782,2]
[404089777,1769809844123,-183.265,0.0001782,2]
[404089778,1769809844133,-7876.38075641,0.00017822,2]
[404089779,1769809844142,-861.0,0.00017829,2]
[404089780,1769809844152,-500.0,0.00017833,2]
[404089781,1769809844161,-500.0,0.00017833,2]
[404089782,1769809844171,-150.0,0.00017833,2]
[404089783,1769809844181,-500.0,0.00017833,2]
[404089784,1769809844190,-500.0,0.00017833,2]
[404089785,1769809844199,-500.0,0.00017833,2]
[404089786,1769809844209,-500.0,0.00017833,2]
[404089787,1769809844218,-500.0,0.00017833,2]
[404089788,1769809844228,-500.0,0.00017833,2]
[404089789,1769809844237,-500.0,0.00017833,2]
[404089790,1769809844246,-7876.38075641,0.00017833,2]
[404089791,1769809844256,-861.0,0.00017836,2]
[404089792,1769809844265,-7876.38075641,0.00017844,2]
[404089793,1769809844275,-3191.23687931,0.00017856,2]
[404089806,1769809847006,-845.0,0.00017856,2]
[404089807,1769809847027,-1682.98,0.00017856,2]
[404089808,1769809847038,-945.83191163,0.00017856,2]
[404089809,1769809847213,-1211.33196547,0.00017856,2]
[404089810,1769809847223,-200.0,0.00017856,2]
[404089811,1769809847233,-7876.38075641,0.00017867,2]
[404089812,1769809847242,-1277.69579334,0.00017878,2]
[404089813,1769809847255,-1149.0,0.00017878,2]
[404089814,1769809847267,-2210.25629834,0.00017878,2]
[404089819,1769810536749,-279.17,0.00024925,120]
[404089820,1769810818170,-726.5,0.00016538,2]
[404089821,1769810818192,-151.0,0.00016815,2]
[404089822,1769810818212,-151.0,0.00016815,2]
[404089823,1769810818234,-151.0,0.00016815,2]
[404089824,1769810818254,-151.0,0.0001682,2]
[404089825,1769810818275,-151.0,0.0001682,2]
[404089826,1769810818296,-1000.0,0.00016856,2]
[404089827,1769810818316,-393.36,0.00016907,2]
[404089828,1769810818336,-1805.32252696,0.00016922,2]
[404089837,1769811031597,-200.0,0.00016213,2]
[404089838,1769811031607,-666.0,0.00016538,2]
[404089839,1769811031616,-4553.6,0.00016621,2]
[404089840,1769811031626,-1200.0,0.00016673,2]
[404089841,1769811031635,-4553.6,0.00016674,2]
[404089842,1769811031645,-300.0,0.00016726,2]
[404089843,1769811031655,-300.0,0.00016726,2]
[404089844,1769811031665,-4553.6,0.00016727,2]
[404089845,1769811031675,-4553.6,0.0001678,2]
[404089846,1769811031684,-4553.6,0.00016833,2]
[404089847,1769811031694,-4553.6,0.00016886,2]
[404089848,1769811031704,-151.0,0.00016911,2]
[404089849,1769811031714,-151.0,0.00016914,2]
[404089850,1769811031724,-266.81747304,0.00016922,2]
[404089851,1769811031740,-4249.98,0.00016932,2]
[404089852,1769811031751,-4553.6,0.00016939,2]
[404089853,1769811031762,-150.0,0.00016951,2]
[404089854,1769811031772,-4553.6,0.00016992,2]
[404089855,1769811031783,-578.20924308,0.0001702,2]
[404089856,1769811031792,-209.40437684,0.0001702,2]
[404089857,1769811031806,-4553.6,0.00017045,2]
[404089859,1769811031816,-4553.6,0.00017098,2]
[404089861,1769811031827,-4553.6,0.00017151,2]
[404089862,1769811031838,-4553.6,0.00017204,2]
[404089863,1769811031847,-4553.6,0.00017257,2]
[404089864,1769811031857,-4553.6,0.0001731,2]
[404089865,1769811031867,-4553.6,0.00017363,2]
[404089866,1769811031877,-500.0,0.00017413,2]
[404089867,1769811031888,-500.0,0.00017413,2]
[404089868,1769811031898,-1000.0,0.00017413,2]
[404089869,1769811031909,-500.0,0.00017413,2]
[404089870,1769811031920,-500.0,0.00017413,2]
[404089871,1769811031931,-1000.0,0.00017413,2]
[404089872,1769811031942,-500.0,0.00017413,2]
[404089873,1769811031952,-500.0,0.00017413,2]
[404089874,1769811031963,-500.0,0.00017413,2]
[404089875,1769811031974,-500.0,0.00017413,2]
[404089876,1769811031983,-1000.0,0.00017413,2]
[404089877,1769811031993,-500.0,0.00017413,2]
[404089878,1769811032007,-500.0,0.00017413,2]
[404089879,1769811032016,-1000.0,0.00017413,2]
[404089880,1769811032026,-500.0,0.00017413,2]
[404089881,1769811032036,-500.0,0.00017413,2]
[404089882,1769811032047,-1000.0,0.00017413,2]
[404089883,1769811032056,-500.0,0.00017413,2]
[404089884,1769811032066,-500.0,0.00017413,2]
[404089885,1769811032076,-1000.0,0.00017413,2]
[404089886,1769811032085,-500.0,0.00017413,2]
[404089887,1769811032095,-500.0,0.00017413,2]
[404089888,1769811032104,-1000.0,0.00017413,2]
[404089889,1769811032114,-500.0,0.00017413,2]
[404089890,1769811032124,-500.0,0.00017413,2]
[404089891,1769811032134,-1000.0,0.00017413,2]
[404089892,1769811032143,-500.0,0.00017413,2]
[404089893,1769811032153,-500.0,0.00017413,2]
[404089894,1769811032162,-1000.0,0.00017413,2]
[404089895,1769811032172,-500.0,0.00017413,2]
[404089896,1769811032182,-500.0,0.00017413,2]
[404089897,1769811032195,-1000.0,0.00017413,2]
[404089898,1769811032204,-500.0,0.00017413,2]
[404089899,1769811032214,-500.0,0.00017413,2]
[404089900,1769811032223,-1000.0,0.00017413,2]
[404089901,1769811032233,-500.0,0.00017413,2]
[404089902,1769811032243,-500.0,0.00017413,2]
[404089903,1769811032253,-349.02244202,0.00017413,2]
[404089904,1769811032263,-500.0,0.00017413,2]
[404089905,1769811032273,-500.0,0.00017413,2]
[404089906,1769811032283,-1000.0,0.00017413,2]
[404089907,1769811032293,-500.0,0.00017413,2]
[404089908,1769811032303,-500.0,0.00017413,2]
[404089909,1769811032313,-500.0,0.00017413,2]
[404089910,1769811032324,-521.9457999,0.00017413,2]
[404089911,1769811032333,-500.0,0.00017413,2]
[404089912,1769811032343,-500.0,0.00017413,2]
[404089913,1769811032354,-500.0,0.00017413,2]
[404089914,1769811032364,-500.0,0.00017413,2]
[404089915,1769811032375,-174.61919141,0.00017413,2]
[404089916,1769811032386,-721.12765535,0.00017413,2]
[404089917,1769811032397,-500.0,0.00017413,2]
[404089918,1769811032407,-500.0,0.00017413,2]
[404089919,1769811032416,-500.0,0.00017413,2]
[404089920,1769811032427,-500.0,0.00017413,2]
[404089921,1769811032439,-500.0,0.00017413,2]
[404089922,1769811032450,-500.0,0.00017413,2]
[404089923,1769811032462,-500.0,0.00017413,2]
[404089924,1769811032472,-500.0,0.00017413,2]
[404089925,1769811032482,-500.0,0.00017413,2]
[404089926,1769811032491,-500.0,0.00017413,2]
[404089927,1769811032502,-500.0,0.00017413,2]
[404089928,1769811032511,-209.40437684,0.00017413,2]
[404089929,1769811032521,-209.40437684,0.00017413,2]
[404089930,1769811032530,-322.6107,0.00017413,2]
[404089931,1769811032540,-1000.0,0.00017413,2]
[404089932,1769811032549,-1000.0,0.00017413,2]
[404089933,1769811032560,-1000.0,0.00017413,2]
[404089934,1769811032570,-1000.0,0.00017413,2]
[404089935,1769811032580,-1000.0,0.00017413,2]
[404089936,1769811032590,-1000.0,0.00017413,2]
[404089937,1769811032600,-1000.0,0.00017413,2]
[404089938,1769811032610,-854.2589148,0.00017413,2]
[404089939,1769811032620,-1000.0,0.00017413,2]
[404089940,1769811032630,-1000.0,0.00017413,2]
[404089941,1769811032639,-305.70455507,0.00017413,2]
[404089942,1769811032650,-1000.0,0.00017413,2]
[404089943,1769811032660,-1000.0,0.00017413,2]
[404089944,1769811032670,-250.0,0.00017413,2]
[404089945,1769811032680,-500.0,0.00017413,2]
[404089946,1769811032690,-500.0,0.00017413,2]
[404089947,1769811032700,-500.0,0.00017413,2]
[404089948,1769811032710,-508.18901631,0.00017413,2]
[404089949,1769811032720,-500.0,0.00017413,2]
[404089950,1769811032731,-579.52737061,0.00017413,2]
[404089951,1769811032744,-151.0,0.00017413,2]
[404089952,1769811032754,-151.0,0.00017413,2]
[404089953,1769811032763,-151.0,0.00017413,2]
[404089954,1769811032782,-151.0,0.00017413,2]
[404089955,1769811032793,-151.0,0.00017413,2]
[404089956,1769811032802,-151.0,0.00017413,2]
[404089957,1769811032814,-151.0,0.00017413,2]
[404089958,1769811032823,-151.0,0.00017413,2]
[404089959,1769811032833,-151.0,0.00017413,2]
[404089960,1769811032842,-151.0,0.00017413,2]
[404089961,1769811032852,-151.0,0.00017413,2]
[404089962,1769811032862,-150.32293724,0.00017413,2]
[404089963,1769811032872,-316.57133444,0.00017413,2]
[404089964,1769811032882,-4553.6,0.00017416,2]
[404089965,1769811032892,-500.0,0.00017422,2]
[404089966,1769811032903,-500.0,0.00017422,2]
[404089967,1769811032913,-500.0,0.00017422,2]
[404089968,1769811032923,-500.0,0.00017422,2]
[404089969,1769811032933,-151.0,0.00017423,2]
[404089970,1769811032943,-151.0,0.00017423,2]
[404089971,1769811032952,-151.0,0.00017423,2]
[404089972,1769811032962,-227.854018,0.00017423,2]
[404089973,1769811032972,-151.0,0.00017423,2]
[404089974,1769811032982,-227.854018,0.00017423,2]
[404089975,1769811032992,-314.328036,0.00017423,2]
[404089976,1769811033003,-227.854018,0.00017423,2]
[404089977,1769811033012,-314.328036,0.00017423,2]
[404089978,1769811033023,-227.854018,0.00017423,2]
[404089979,1769811033034,-314.328036,0.00017423,2]
[404089980,1769811033044,-314.328036,0.00017423,2]
[404089981,1769811033054,-151.0,0.00017423,2]
[404089982,1769811033064,-151.0,0.00017423,2]
[404089983,1769811033074,-8923.25702523,0.00017423,2]
[404089984,1769811033119,-8980.70455397,0.00017423,2]
[404089985,1769811033130,-804.0,0.00017423,2]
[404089986,1769811033142,-300.0,0.00017423,2]
[404090001,1769811037611,-1146.58616103,0.00017423,2]
[404090002,1769811037796,-1186.28697421,0.00017423,2]
[404090052,1769811039618,-446.43123224,0.00017423,2]
[404090053,1769811039630,-332.00664296,0.00017423,2]
[404090054,1769811039642,-548.38746305,0.00017423,2]
[404090055,1769811039684,-766.26756275,0.00017423,2]
[404090056,1769811039695,-3338.78006525,0.00017423,2]
[404090057,1769811039707,-24055.57077168,0.00017423,2]
[404090058,1769811039865,-3063.35789132,0.00017423,2]
[404090065,1769811043212,-520.0202808,0.00017423,2]
[404090066,1769811043224,-3318.44912896,0.00017423,2]
[404090073,1769811045709,-3000.0,0.00017423,2]